bitfinex/quotes_SOLUSD_20250420
["timestamp","ask_amount","ask_price","bid_price","bid_amount"]
[1745108573500,25.82025724,140.7,140.66,26.0]
[1745108575197,0.063,140.7,140.66,33.10933959]
[1745108576681,0.063,140.7,140.69,26.0]
[1745108577893,7.8412,140.76,140.7,26.0]
[1745108578488,18.64964886,140.75,140.7,26.0]
[1745108578785,18.64964886,140.75,140.7,33.10727964]
[1745108580396,7.8712,140.76,140.7,33.10727964]
[1745108580792,0.03,140.76,140.7,33.10727964]
[1745108581501,0.03,140.76,140.7,151.17558098]
[1745108581711,0.03,140.76,140.7,186.71218368]
[1745108583496,0.03,140.76,140.75,26.0]
[1745108584485,0.03,140.76,140.75,33.10479573]
[1745108587510,0.03,140.8,140.75,149.81643392]
[1745108587702,0.03,140.8,140.79,26.0]
[1745108588697,0.03,140.8,140.79,33.10277718]
[1745108597223,0.03,140.8,140.79,44.92198008]
[1745108599303,0.03,140.8,140.79,11.8192029]
[1745108599505,0.03,140.8,140.77,7.10365098]
[1745108599808,0.03,140.8,140.78,11.8192029]
[1745108600201,0.03,140.8,140.79,11.8192029]
[1745108600923,0.03,140.8,140.79,18.92198008]
[1745108606031,0.03,140.84,140.82,26.0]
[1745108606214,0.03,140.86,140.83,11.8192029]
[1745108606412,0.03,140.86,140.85,11.8192029]
[1745108606805,0.03,140.86,140.84,37.8192029]
[1745108607524,0.03,140.86,140.85,7.0997515]
[1745108609634,0.03,140.86,140.85,18.9189544]
[1745108613037,0.03,140.86,140.85,7.0997515]
[1745108614140,0.03,140.86,140.85,18.9189544]
[1745108617249,0.03,140.86,140.85,7.0997515]
[1745108618220,0.03,140.86,140.85,18.9189544]
[1745108622036,0.03,140.87,140.85,99.21895439]
[1745108622241,6.0811,140.9,140.89,11.8192029]
[1745108622242,0.03,140.9,140.89,11.8192029]
[1745108623518,0.03,140.9,140.89,7.5541893]
[1745108624262,0.03,140.9,140.89,14.65192512]
[1745108625113,0.03,140.9,140.89,18.90031812]
[1745108628837,0.03,140.9,140.87,26.0]
[1745108629024,0.03,140.9,140.85,99.20221982]
[1745108629224,6.3404,140.89,140.85,18.90221983]
[1745108630451,6.3404,140.89,140.86,11.8025823]
[1745108630615,6.3404,140.89,140.87,11.8025823]
[1745108632355,6.3404,140.89,140.88,7.09823963]
[1745108633456,6.3404,140.89,140.86,7.09924747]
[1745108635441,0.03,140.9,140.87,11.8025823]
[1745108637842,0.03,140.9,140.86,29.55070099]
[1745108638963,0.03,140.9,140.86,36.64994846]
[1745108639635,0.03,140.9,140.87,11.8025823]
[1745108639839,0.03,140.9,140.86,36.64994846]
[1745108640953,0.03,140.9,140.86,17.74811869]
[1745108641148,11.8325823,140.9,140.85,7.0997515]
[1745108642557,11.8025823,140.89,140.85,7.0997515]
[1745108642733,11.8325823,140.9,140.85,7.0997515]
[1745108643244,11.8025823,140.89,140.85,7.0997515]
[1745108644134,11.8025823,140.89,140.84,33.1000751]
[1745108645143,7.55966658,140.89,140.84,33.1000751]
[1745108645356,0.03,140.9,140.84,40.65974168]
[1745108645560,7.58966658,140.9,140.84,40.65974168]
[1745108645935,7.55966658,140.89,140.84,33.1000751]
[1745108647555,7.55966658,140.88,140.84,7.1000751]
[1745108648145,7.55966658,140.89,140.84,7.1000751]
[1745108648555,7.55966658,140.88,140.84,7.1000751]
[1745108649651,7.55966658,140.89,140.84,7.1000751]
[1745108649845,7.6196,140.88,140.82,7.10126402]
[1745108650036,7.6196,140.88,140.81,0.063]
[1745108650037,7.55966658,140.85,140.81,0.063]
[1745108650236,7.55966658,140.84,140.81,0.063]
[1745108650455,18.64964886,140.87,140.81,0.063]
[1745108650456,7.55966658,140.83,140.81,0.063]
[1745108650644,7.55966658,140.82,140.81,0.063]
[1745108652156,12.29688314,140.82,140.81,0.063]
[1745108652659,13.79948314,140.82,140.81,0.063]
[1745108652953,38.566132,140.82,140.81,0.063]
[1745108653141,42.83524859,140.82,140.81,0.063]
[1745108653351,42.83524859,140.82,140.79,0.063]
[1745108653553,30.47843203,140.8,140.79,0.063]
[1745108653944,42.3072152,140.8,140.79,0.063]
[1745108654139,56.47843203,140.79,140.78,0.063]
[1745108654362,11.82878317,140.73,140.72,0.063]
[1745108654565,38.09803203,140.73,140.72,0.063]
[1745108655066,42.83524859,140.73,140.72,0.063]
[1745108655364,68.83524859,140.73,140.72,0.063]
[1745108655572,11.82878317,140.71,140.7,0.063]
[1745108656159,30.47843203,140.71,140.7,0.063]
[1745108659368,11.82878317,140.71,140.7,0.063]
[1745108659564,30.47843203,140.72,140.7,0.063]
[1745108660461,11.82878317,140.71,140.7,0.063]
[1745108660640,18.64964886,140.72,140.7,0.063]
[1745108660641,30.47843203,140.72,140.7,0.063]
[1745108660839,11.82878317,140.72,140.7,0.063]
[1745108664066,11.82878317,140.71,140.7,0.063]
[1745108666354,30.47843203,140.71,140.7,0.063]
[1745108667566,18.64964886,140.74,140.7,0.063]
[1745108668079,18.67964886,140.78,140.7,0.063]
[1745108668287,11.82878317,140.73,140.7,0.063]
[1745108670579,11.82878317,140.72,140.7,0.063]
[1745108672596,11.82878317,140.73,140.7,0.063]
[1745108681195,7.5766911,140.73,140.7,0.063]
[1745108686402,14.48,140.77,140.7,0.063]
[1745108686584,18.64964886,140.76,140.71,7.5766911]
[1745108687385,26.22633996,140.76,140.71,7.5766911]
[1745108688381,26.22633996,140.76,140.72,26.0]
[1745108688588,26.22633996,140.76,140.72,33.10585556]
[1745108688791,7.5766911,140.75,140.72,33.10585556]
[1745108690701,18.64964886,140.76,140.72,33.10585556]
[1745108691283,26.22633996,140.76,140.72,33.10585556]
[1745108692199,7.5766911,140.75,140.72,33.10585556]
[1745108696386,7.5766911,140.75,140.72,7.10585556]
[1745108698303,7.5766911,140.75,140.71,7.10681543]
[1745108698606,7.5766911,140.76,140.71,7.10681543]
[1745108698802,4.68712473,140.75,140.71,7.10681543]
[1745108699901,7.5766911,140.76,140.71,7.10681543]
[1745108701908,7.5766911,140.76,140.71,14.68350653]
[1745108702207,4.69329543,140.75,140.74,26.0]
[1745108702499,4.69329543,140.75,140.74,33.5766911]
[1745108703500,0.03,140.78,140.74,33.5766911]
[1745108703710,0.03,140.78,140.76,7.5766911]
[1745108704097,0.03,140.78,140.77,7.10378631]
[1745108705610,0.03,140.78,140.77,14.68047741]
[1745108706903,0.03,140.78,140.77,40.68047741]
[1745108707708,0.03,140.87,140.81,26.0]
[1745108707920,0.03,140.87,140.83,7.5766911]
[1745108708408,0.03,140.87,140.84,7.1002556]
[1745108715821,7.6066911,140.87,140.84,7.1002556]
[1745108716024,7.5766911,140.86,140.82,7.10126402]
[1745108716394,7.6066911,140.87,140.82,7.10126402]
[1745108720129,18.67964886,140.87,140.82,7.10126402]
[1745108720303,7.6066911,140.87,140.82,14.67795512]
[1745108720915,26.25633996,140.87,140.82,7.10126402]
[1745108721113,7.5766911,140.86,140.82,7.10126402]
[1745108721923,7.5766911,140.85,140.82,7.10126402]
[1745108722921,7.5766911,140.85,140.78,3.54605405]
[1745108722922,18.64964886,140.82,140.75,1.633]
[1745108723118,7.5766911,140.8,140.75,14.68148683]
[1745108723616,7.5766911,140.8,140.75,40.68148683]
[1745108723809,7.5766911,140.8,140.75,7.10479573]
[1745108724010,7.5766911,140.8,140.75,14.68148683]
[1745108724902,7.5766911,140.8,140.75,7.10479573]
[1745108725101,7.5766911,140.8,140.75,14.68148683]
[1745108726226,7.5766911,140.8,140.75,32.44347617]
[1745108726711,7.5766911,140.81,140.76,7.5766911]
[1745108727109,7.5766911,140.8,140.75,32.44347617]
[1745108727717,7.5766911,140.79,140.75,7.10479573]
[1745108728111,7.5766911,140.78,140.75,7.10479573]
[1745108728722,7.5766911,140.78,140.74,7.10530055]
[1745108729024,7.5766911,140.77,140.73,33.16861188]
[1745108730411,7.5766911,140.76,140.73,26.063]
[1745108731011,7.5766911,140.75,140.73,0.063]
[1745108731221,7.5766911,140.74,140.73,0.063]
[1745108731727,26.22633996,140.74,140.73,0.063]
[1745108732825,33.33164051,140.74,140.73,0.063]
[1745108734209,25.75494941,140.74,140.73,0.063]
[1745108734524,33.33164051,140.74,140.73,0.063]
[1745108736240,26.22633996,140.74,140.73,0.063]
[1745108737421,33.33164051,140.74,140.73,0.063]
[1745108744438,0.0571261,140.75,140.73,0.063]
[1745108748018,7.6338172,140.75,140.73,0.063]
[1745108748214,7.5766911,140.74,140.73,0.063]
[1745108749939,33.33164051,140.74,140.73,0.063]
[1745108752922,25.75494941,140.74,140.73,0.063]
[1745108753116,33.33164051,140.74,140.73,0.063]
[1745108755950,47.10494941,140.74,140.73,0.063]
[1745108756140,33.33164051,140.74,140.73,0.063]
[1745108757052,25.75494941,140.74,140.73,0.063]
[1745108757237,33.33164051,140.74,140.73,0.063]
[1745108757433,0.0571261,140.75,140.73,0.063]
[1745108757835,0.0571261,140.75,140.73,7.6396911]
[1745108759134,0.0571261,140.75,140.74,7.5766911]
[1745108759548,0.0571261,140.75,140.74,14.68199165]
[1745108760654,0.0571261,140.75,140.74,7.10530055]
[1745108761155,0.0571261,140.75,140.73,7.16863095]
[1745108761831,0.0571261,140.75,140.73,14.74532205]
[1745108763856,7.6338172,140.75,140.73,0.063]
[1745108764050,7.5766911,140.75,140.73,0.063]
[1745108767165,7.5766911,140.74,140.73,0.063]
[1745108767459,26.22633996,140.74,140.73,0.063]
[1745108768765,37.77877643,140.74,140.73,0.063]
[1745108769862,120.17877643,140.74,140.73,0.063]
[1745108770366,4.44713592,140.74,140.73,0.063]
[1745108770745,4.44713592,140.76,140.73,0.063]
[1745108771144,7.5766911,140.75,140.73,0.063]
[1745108773771,7.10431848,140.76,140.73,0.063]
[1745108773772,11.92365645,140.74,140.73,0.063]
[1745108779069,11.98078255,140.74,140.73,0.063]
[1745108780769,37.73573196,140.74,140.73,0.063]
[1745108783370,39.24393196,140.74,140.73,0.063]
[1745108783568,60.55393196,140.74,140.73,0.063]
[1745108786472,39.24393196,140.74,140.73,0.063]
[1745108805787,65.24393196,140.74,140.73,0.063]
[1745108806090,39.24393196,140.74,140.73,0.063]
[1745108807186,65.24393196,140.74,140.73,0.063]
[1745108808089,39.24393196,140.74,140.73,0.063]
[1745108815576,44.64964886,140.71,140.7,0.063]
[1745108815900,18.64964886,140.7,140.69,0.063]
[1745108816103,18.64964886,140.68,140.67,0.063]
[1745108816308,52.22633996,140.68,140.67,0.063]
[1745108817789,59.33467092,140.68,140.67,0.063]
[1745108818599,59.33467092,140.68,140.67,1e-08]
[1745108818790,18.64964886,140.67,140.65,0.063]
[1745108818991,26.22633996,140.67,140.65,0.063]
[1745108819780,18.64964886,140.65,140.6,0.063]
[1745108819982,26.22633996,140.65,140.6,0.063]
[1745108820181,56.53310436,140.65,140.6,0.063]
[1745108820384,103.84310436,140.65,140.6,0.063]
[1745108820583,26.22633996,140.62,140.6,0.063]
[1745108821096,18.64964886,140.61,140.6,0.063]
[1745108821300,40.68633996,140.61,140.6,0.063]
[1745108821922,18.64964886,140.59,140.58,0.063]
[1745108822093,26.22633996,140.59,140.58,0.063]
[1745108822880,26.22633996,140.59,140.56,0.063]
[1745108823088,26.22633996,140.57,140.56,0.063]
[1745108823814,33.34023339,140.57,140.56,0.063]
[1745108824999,63.64699779,140.57,140.56,0.063]
[1745108825608,63.64699779,140.57,140.56,1e-08]
[1745108825818,25.7640484,140.56,140.55,0.063]
[1745108825990,78.1075039,140.56,140.55,0.063]
[1745108828305,78.1075039,140.56,140.55,1e-08]
[1745108828508,78.1075039,140.56,140.51,0.063]
[1745108828509,95.89350276,140.56,140.51,0.063]
[1745108828816,26.22633996,140.52,140.51,0.063]
[1745108830491,33.34276466,140.52,140.51,0.063]
[1745108834322,26.22633996,140.52,140.51,0.063]
[1745108835826,7.5766911,140.52,140.51,0.063]
[1745108836003,33.34276466,140.52,140.51,0.063]
[1745108838725,25.76607356,140.52,140.51,0.063]
[1745108838912,33.34276466,140.52,140.51,0.063]
[1745108847723,54.65276466,140.52,140.51,0.063]
[1745108848114,18.64964886,140.51,140.49,0.03]
[1745108848419,40.70633996,140.5,140.49,0.03]
[1745108848817,47.82377768,140.5,140.49,0.03]
[1745108852737,47.82377768,140.5,140.46,0.03]
[1745108852738,44.64964886,140.47,140.46,0.03]
[1745108853029,52.22633996,140.47,140.46,0.03]
[1745108853829,18.64964886,140.46,140.45,0.0028739]
[1745108854028,26.22633996,140.46,140.45,0.0028739]
[1745108854834,33.34580457,140.46,140.45,0.0028739]
[1745108860738,98.45446611,140.46,140.41,0.03]
[1745108860939,7.5766911,140.42,140.41,0.03]
[1745108861749,26.22633996,140.42,140.41,0.03]
[1745108862544,14.48,140.45,140.41,0.03]
[1745108862743,18.64964886,140.44,140.41,0.03]
[1745108862917,7.5766911,140.43,140.41,0.03]
[1745108863536,14.69769938,140.43,140.41,0.03]
[1745108865331,7.5766911,140.42,140.41,0.03]
[1745108866253,14.69818376,140.42,140.41,0.03]
[1745108866436,7.11794433,140.49,140.42,1.5348]
[1745108866631,7.5766911,140.48,140.44,26.0]
[1745108867136,7.5766911,140.47,140.44,26.0]
[1745108867446,7.5766911,140.47,140.43,33.12098554]
[1745108867643,7.5766911,140.47,140.42,34.65612714]
[1745108867947,7.5766911,140.46,140.42,27.5348]
[1745108868583,7.5766911,140.46,140.42,34.65624134]
[1745108868853,7.5766911,140.46,140.42,27.5348]
[1745108869036,7.5766911,140.45,140.42,1.5348]
[1745108869346,7.5766911,140.44,140.41,0.03]
[1745108869828,14.69670282,140.45,140.41,0.03]
[1745108873652,7.5766911,140.44,140.41,0.03]
[1745108876857,22.0566911,140.48,140.42,7.5766911]
[1745108877045,7.5766911,140.47,140.42,7.5766911]
[1745108877232,26.22633996,140.47,140.41,7.6066911]
[1745108877438,18.64964886,140.47,140.41,7.6066911]
[1745108877637,7.5766911,140.46,140.41,7.6066911]
[1745108877838,7.5766911,140.46,140.42,7.12149266]
[1745108879062,33.34547335,140.47,140.42,7.5766911]
[1745108879369,26.22633996,140.47,140.42,7.5766911]
[1745108879567,33.34538374,140.47,140.41,7.15199985]
[1745108879867,7.5766911,140.46,140.41,14.72869095]
[1745108880044,7.5766911,140.47,140.42,7.5766911]
[1745108881378,7.5766911,140.47,140.43,7.12098554]
[1745108881665,14.69568453,140.47,140.43,7.12098554]
[1745108881976,7.5766911,140.47,140.43,7.12098554]
[1745108882667,7.5766911,140.48,140.43,7.12098554]
[1745108882850,33.34445989,140.49,140.43,40.69767664]
[1745108884675,7.5766911,140.48,140.43,40.69767664]
[1745108884964,14.69517262,140.48,140.43,33.12098554]
[1745108885174,7.5766911,140.47,140.43,33.12098554]
[1745108886853,14.69517262,140.48,140.43,33.12098554]
[1745108888363,7.5766911,140.47,140.43,26.0]
[1745108888750,7.5766911,140.47,140.43,33.12093571]
[1745108890264,26.22633996,140.52,140.46,7.5766911]
[1745108890858,18.64964886,140.52,140.46,7.5766911]
[1745108891062,7.5766911,140.51,140.46,7.5766911]
[1745108891454,7.5766911,140.5,140.45,14.69666262]
[1745108892067,7.5766911,140.48,140.44,8.66527094]
[1745108892461,7.5766911,140.49,140.44,8.66527094]
[1745108893681,14.69490723,140.49,140.44,8.66527094]
[1745108893970,7.5766911,140.48,140.44,8.66527094]
[1745108894182,7.5766911,140.47,140.43,33.1207638]
[1745108894980,6.5628,140.52,140.46,26.0]
[1745108895164,7.5766911,140.5,140.46,26.0]
[1745108895777,26.22633996,140.5,140.46,26.0]
[1745108895984,18.64964886,140.5,140.46,26.0]
[1745108896285,33.34381033,140.5,140.46,26.0]
[1745108896575,26.22633996,140.49,140.46,26.0]
[1745108897755,7.5766911,140.48,140.46,26.0]
[1745108898072,7.5766911,140.48,140.43,7.1207531]
[1745108898965,14.69538441,140.48,140.43,7.1207531]
[1745108899879,7.5766911,140.47,140.43,7.1207531]
[1745108902191,14.69568684,140.47,140.43,7.1207531]
[1745108902964,7.5766911,140.47,140.43,7.1207531]
[1745108903165,14.69531631,140.48,140.43,14.6974442]
[1745108904285,14.69519493,140.48,140.43,14.6974442]
[1745108905484,7.5766911,140.49,140.43,14.6974442]
[1745108905677,14.69472507,140.49,140.43,14.6974442]
[1745108907961,27.35620009,140.5,140.46,26.0]
[1745108908165,7.5766911,140.49,140.46,26.0]
[1745108909384,26.22633996,140.48,140.45,26.0]
[1745108910284,26.22633996,140.48,140.43,7.5766911]
[1745108910285,18.64964886,140.45,140.41,0.03]
[1745108910588,7.5766911,140.42,140.41,0.03]
[1745108910976,26.22633996,140.42,140.41,0.03]
[1745108911376,33.34783262,140.42,140.41,0.03]
[1745108911576,39.53733262,140.42,140.41,0.03]
[1745108911765,41.59354886,140.41,140.37,0.03]
[1745108911968,26.22633996,140.38,140.37,0.03]
[1745108913377,33.34986182,140.38,140.37,0.03]
[1745108923002,39.90626182,140.38,140.37,0.03]
[1745108932386,33.34986182,140.38,140.37,0.03]
[1745108936207,7.5766911,140.39,140.37,0.03]
[1745108936397,26.22633996,140.4,140.37,0.03]
[1745108936792,33.34906215,140.4,140.37,0.03]
[1745108937207,7.5766911,140.41,140.37,0.03]
[1745108937915,7.5766911,140.41,140.37,7.15402935]
[1745108938215,14.69878035,140.41,140.37,0.03]
[1745108942920,7.5766911,140.41,140.37,0.03]
[1745108943429,14.69879738,140.41,140.37,0.03]
[1745108948129,7.12210628,140.41,140.37,0.03]
[1745108948325,14.69879738,140.41,140.37,0.03]
[1745108953944,7.5766911,140.41,140.37,0.03]
[1745108954320,26.22633996,140.4,140.37,0.03]
[1745108955943,33.3489407,140.4,140.37,0.03]
[1745108956241,26.22633996,140.4,140.37,0.03]
[1745108969237,33.34885648,140.4,140.37,0.03]
[1745108969654,25.77216538,140.4,140.37,0.03]
[1745108969827,33.34885648,140.4,140.37,0.03]
[1745108977555,7.5766911,140.4,140.37,0.03]
[1745108977737,7.12158542,140.42,140.38,7.5766911]
[1745108978257,33.34756937,140.43,140.38,7.5766911]
[1745108979859,33.34756937,140.43,140.38,14.69978053]
[1745108980044,7.5766911,140.42,140.38,14.69978053]
[1745108981360,7.5766911,140.42,140.38,7.12308943]
[1745108984956,33.34756937,140.43,140.38,7.12308943]
[1745108991561,7.5766911,140.43,140.38,7.12308943]
[1745108991758,7.5766911,140.43,140.38,14.69978053]
[1745108991961,7.5766911,140.44,140.38,14.69978053]
[1745108992161,16.273136,140.45,140.39,7.5766911]
[1745108992351,0.063,140.46,140.4,26.0]
[1745108992544,0.063,140.46,140.43,33.5766911]
[1745108993253,0.063,140.46,140.42,33.5766911]
[1745108993457,0.063,140.46,140.43,7.5766911]
[1745108993664,0.063,140.46,140.45,7.5766911]
[1745108994766,0.063,140.46,140.45,33.5766911]
[1745108995365,0.063,140.46,140.45,40.69666262]
[1745108996163,0.063,140.46,140.45,14.69666262]
[1745108999754,0.063,140.46,140.45,40.69666262]
[1745109000052,0.063,140.46,140.45,14.69666262]
[1745109000248,0.063,140.46,140.42,80.29999999]
[1745109000444,7.6396911,140.46,140.41,7.5766911]
[1745109000758,7.5766911,140.44,140.39,80.29999999]
[1745109000953,18.64964886,140.45,140.38,18.21286523]
[1745109001158,7.5766911,140.43,140.38,7.5766911]
[1745109001473,7.5766911,140.43,140.4,26.0]
[1745109002172,7.12149266,140.42,140.4,26.0]
[1745109003767,14.69788524,140.43,140.4,26.0]
[1745109004072,7.12119414,140.43,140.4,26.0]
[1745109005069,26.22633996,140.45,140.4,26.0]
[1745109005267,14.6968204,140.45,140.4,26.0]
[1745109005446,14.6968204,140.45,140.4,33.5766911]
[1745109005849,14.6968204,140.45,140.4,26.0]
[1745109006364,14.6968204,140.45,140.4,33.5766911]
[1745109006571,14.6968204,140.45,140.4,7.5766911]
[1745109008577,14.6968204,140.45,140.4,40.69908868]
[1745109009578,14.6968204,140.45,140.4,33.5766911]
[1745109009965,7.5766911,140.44,140.4,26.0]
[1745109010264,14.6968204,140.45,140.4,26.0]
[1745109011573,25.28714886,140.46,140.4,26.0]
[1745109011574,7.5766911,140.43,140.4,26.0]
[1745109012582,7.5766911,140.43,140.37,29.17042941]
[1745109012880,7.5766911,140.43,140.37,55.17042941]
[1745109014085,7.12149266,140.42,140.37,55.17042941]
[1745109014383,7.12149266,140.42,140.38,7.5766911]
[1745109018777,7.12149266,140.42,140.39,7.5766911]
[1745109022172,7.5766911,140.41,140.37,26.0]
[1745109022680,7.5766911,140.39,140.36,0.03]
[1745109022984,7.5766911,140.38,140.36,0.03]
[1745109024492,7.12402935,140.37,140.36,0.03]
[1745109025194,14.70072045,140.37,140.36,0.03]
[1745109025369,33.35036931,140.37,140.36,0.03]
[1745109026280,34.91066931,140.37,140.36,0.03]
[1745109041199,26.22633996,140.4,140.36,0.03]
[1745109042311,33.34884708,140.4,140.36,0.03]
[1745109043100,33.34884708,140.4,140.36,7.6066911]
[1745109043101,25.77215598,140.4,140.36,7.6066911]
[1745109044994,33.34884708,140.4,140.36,0.03]
[1745109046290,7.5766911,140.42,140.37,7.5766911]
[1745109046894,47.85049846,140.43,140.38,7.5766911]
[1745109047088,47.85049846,140.43,140.37,7.5766911]
[1745109047499,7.5766911,140.42,140.37,7.5766911]
[1745109048413,14.69846372,140.42,140.37,7.5766911]
[1745109048604,14.69846372,140.42,140.37,14.7006858]
[1745109048811,26.22633996,140.4,140.36,0.03]
[1745109049487,7.5766911,140.39,140.36,0.03]
[1745109050390,14.69990427,140.39,140.36,0.03]
[1745109052407,7.5766911,140.38,140.36,0.03]
[1745109052795,14.69990427,140.39,140.36,0.03]
[1745109053403,7.12321317,140.39,140.36,0.03]
[1745109053597,7.5766911,140.38,140.36,0.03]
[1745109053905,14.70029921,140.38,140.36,0.03]
[1745109055208,26.22633996,140.37,140.36,0.03]
[1745109056214,33.35036931,140.37,140.36,0.03]
[1745109058209,25.77367821,140.37,140.36,0.03]
[1745109058509,18.64964886,140.37,140.36,0.03]
[1745109059107,25.77367821,140.37,140.36,0.03]
[1745109060213,7.5766911,140.38,140.36,0.03]
[1745109060214,18.64964886,140.38,140.36,0.03]
[1745109060912,25.77319347,140.38,140.36,0.03]
[1745109067134,116.0325,140.43,140.36,0.03]
[1745109067322,25.77114152,140.42,140.37,7.5766911]
[1745109067499,33.34783262,140.42,140.37,7.5766911]
[1745109067917,7.5766911,140.41,140.37,26.0]
[1745109068113,33.34783262,140.42,140.37,33.5766911]
[1745109068319,7.5766911,140.41,140.37,26.0]
[1745109068622,7.5766911,140.41,140.37,33.12394422]
[1745109068828,14.69884079,140.41,140.37,33.12394422]
[1745109069720,0.063,140.43,140.39,7.5766911]
[1745109070725,0.063,140.43,140.39,14.69965259]
[1745109071023,0.063,140.43,140.37,43.81007337]
[1745109071024,7.6396911,140.43,140.38,14.70009013]
[1745109071215,7.5766911,140.42,140.38,7.12339903]
[1745109071593,7.5766911,140.42,140.37,40.70056179]
[1745109072101,7.5766911,140.39,140.36,0.03]
[1745109072299,26.22633996,140.38,140.36,0.03]
[1745109072619,33.35005333,140.38,140.36,0.03]
[1745109072819,26.22633996,140.37,140.36,0.03]
[1745109074002,18.64964886,140.37,140.36,0.03]
[1745109074308,14.70040447,140.38,140.36,0.03]
[1745109075019,8.1359,140.43,140.4,26.0]
[1745109075020,0.063,140.43,140.4,26.0]
[1745109075202,0.063,140.43,140.42,7.5766911]
[1745109075402,0.063,140.43,140.41,7.5766911]
[1745109075804,0.063,140.43,140.4,33.5766911]
[1745109079036,0.063,140.43,140.41,26.0]
[1745109080027,18.64964886,140.41,140.36,0.03]
[1745109080218,7.5766911,140.38,140.36,0.03]
[1745109081225,7.12402935,140.37,140.36,0.03]
[1745109082224,33.35036931,140.37,140.36,0.03]
[1745109083132,37.67601541,140.37,140.36,0.03]
[1745109090530,25.77367821,140.37,140.36,0.03]
[1745109090736,37.67601541,140.37,140.36,0.03]
[1745109091823,18.64964886,140.36,140.34,1e-08]
[1745109092038,18.64964886,140.34,140.32,2.3786633]
[1745109092247,18.64964886,140.32,140.31,0.03]
[1745109092428,30.55198606,140.32,140.31,0.03]
[1745109094149,51.1094911,140.32,140.31,0.03]
[1745109095055,39.2071539,140.32,140.31,0.03]
[1745109100455,51.1094911,140.32,140.31,0.03]
[1745109102151,25.7762167,140.32,140.31,0.03]
[1745109102455,11.9023372,140.36,140.31,0.03]
[1745109102661,11.9023372,140.36,140.31,11.9323372]
[1745109103150,7.61689608,140.36,140.31,7.64689608]
[1745109103540,14.74165976,140.36,140.31,0.03]
[1745109103931,7.61689608,140.35,140.31,0.03]
[1745109104552,26.26654494,140.34,140.31,0.03]
[1745109105244,30.55427381,140.34,140.31,0.03]
[1745109105556,7.12606,140.33,140.31,0.03]
[1745109106853,19.03068495,140.33,140.31,0.03]
[1745109108457,7.12606,140.33,140.31,0.03]
[1745109108958,11.90462495,140.32,140.31,0.03]
[1745109109257,30.55427381,140.32,140.31,0.03]
[1745109110759,37.68084165,140.32,140.31,0.03]
[1745109117360,7.12643241,140.33,140.31,0.03]
[1745109120845,37.68001349,140.34,140.31,0.03]
[1745109121046,25.77538854,140.34,140.31,0.03]
[1745109121578,37.68001349,140.34,140.31,0.03]
[1745109121867,11.90462495,140.32,140.31,0.03]
[1745109122243,19.03119279,140.32,140.31,0.03]
[1745109127252,14.74915918,140.32,140.31,0.03]
[1745109129170,14.74885981,140.33,140.31,0.03]
[1745109130074,26.2722402,140.32,140.31,0.03]
[1745109130276,33.39880804,140.32,140.31,0.03]
[1745109140776,59.39880804,140.32,140.31,0.03]
[1745109142811,33.39880804,140.32,140.31,0.03]
[1745109143086,25.7762167,140.32,140.31,0.03]
[1745109143587,33.39880804,140.32,140.31,0.03]
[1745109144185,29.18871717,140.33,140.31,0.03]
[1745109144579,7.62259134,140.36,140.31,0.03]
[1745109144779,24.93410272,140.37,140.31,0.03]
[1745109144980,7.62259134,140.34,140.31,0.03]
[1745109146466,14.74865134,140.33,140.31,0.03]
[1745109146675,7.62259134,140.32,140.31,0.03]
[1745109146887,26.2722402,140.32,140.31,0.03]
[1745109149279,33.39880804,140.32,140.31,0.03]
[1745109155991,59.39880804,140.32,140.31,0.03]
[1745109161881,33.39880804,140.32,140.31,0.03]
[1745109164203,25.7762167,140.32,140.31,0.03]
[1745109164396,33.39880804,140.32,140.31,0.03]
[1745109164707,26.2722402,140.32,140.31,0.03]
[1745109164894,25.7762167,140.32,140.31,0.03]
[1745109165102,7.12623889,140.33,140.31,0.03]
[1745109166280,18.64964886,140.37,140.31,7.65259134]